bitfinex/quotes_ETHUSD_20260114
["timestamp","ask_amount","ask_price","bid_price","bid_amount"]
[1768371716550,0.557,3319.9,3319.5,3.20564811]
[1768371716744,1.112,3319.9,3319.5,3.20564811]
[1768371718652,1.112,3319.9,3319.3,3.20564811]
[1768371718857,1.112,3319.9,3319.4,3.20564811]
[1768371719355,1.667,3319.9,3319.4,6.21818697]
[1768371719558,1.667,3319.9,3319.5,3.01249253]
[1768371719856,1.667,3319.9,3319.4,6.21820874]
[1768371721827,2.222,3319.9,3319.4,6.21820874]
[1768371722361,2.222,3319.9,3319.5,3.20564811]
[1768371722769,2.222,3319.9,3319.4,3.01256063]
[1768371722934,2.222,3319.9,3319.4,6.21820874]
[1768371724659,2.222,3319.9,3319.4,3.20564811]
[1768371724860,2.777,3319.9,3319.4,3.20564811]
[1768371725363,2.777,3319.9,3319.4,6.21823893]
[1768371727332,3.332,3319.9,3319.4,6.21823893]
[1768371728660,3.332,3319.9,3319.4,3.20564811]
[1768371729136,3.332,3319.9,3319.4,6.21823595]
[1768371729857,3.887,3319.9,3319.4,6.21823595]
[1768371730060,3.887,3319.9,3319.4,3.20564811]
[1768371732374,4.442,3319.9,3319.4,3.20564811]
[1768371732869,4.442,3319.9,3319.4,6.21823473]
[1768371733053,4.442,3319.9,3319.1,2.96904163]
[1768371733386,5.28814421,3319.9,3319.2,5.98176701]
[1768371734671,5.84314421,3319.9,3319.2,5.98176701]
[1768371734875,8.89358632,3319.9,3319.2,2.96904163]
[1768371736249,3.05044211,3319.8,3318.8,2.96904163]
[1768371736450,3.05044211,3319.6,3318.8,5.98212773]
[1768371736650,1.24606381,3319.8,3319.0,2.96904163]
[1768371736864,6.25714421,3319.9,3319.0,2.96904163]
[1768371737074,0.555,3320.0,3319.5,12.75299659]
[1768371737276,0.555,3320.0,3319.5,2.96904163]
[1768371737475,0.555,3320.0,3319.5,0.001]
[1768371737680,0.002,3319.6,3319.5,2.96662427]
[1768371737858,0.41257273,3320.3,3319.2,9.78395496]
[1768371737859,0.002,3319.9,3319.6,2.96904163]
[1768371738059,0.40914546,3320.3,3319.6,3.26252843]
[1768371738384,0.40914546,3320.3,3319.6,2.96562427]
[1768371739181,3.42094763,3320.3,3319.6,2.96562427]
[1768371739362,3.06291789,3320.2,3319.4,6.14247869]
[1768371739892,3.06291789,3320.2,3319.3,3.01264213]
[1768371740091,3.06291789,3320.2,3319.4,3.01258821]
[1768371740289,3.76680444,3320.2,3319.4,3.01258821]
[1768371740459,3.76680444,3320.2,3319.3,3.01268339]
[1768371741554,3.47691789,3320.1,3319.3,3.01268339]
[1768371744301,3.47691789,3320.1,3319.3,6.14260661]
[1768371744503,4.03191789,3320.1,3319.3,6.14260661]
[1768371745387,4.8240958,3320.1,3319.3,6.14260661]
[1768371747008,4.17291789,3320.1,3319.4,3.12992322]
[1768371747240,1.524,3320.1,3319.4,3.12992322]
[1768371747522,1.524,3320.1,3319.6,3.12992322]
[1768371747680,1.11,3320.1,3319.6,3.12992322]
[1768371748905,0.55157273,3320.2,3320.0,3.12992322]
[1768371749412,0.55157273,3320.2,3319.8,3.12992322]
[1768371749413,1.10657273,3320.2,3319.8,3.12992322]
[1768371749603,0.002,3319.9,3319.8,3.12992322]
[1768371749998,0.002,3319.9,3319.1,3.12992322]
[1768371749999,3.06491789,3319.9,3319.1,3.12992322]
[1768371750209,3.06491789,3319.9,3319.1,3.01285842]
[1768371750382,3.06491789,3319.9,3318.9,6.14295547]
[1768371750383,3.06491789,3319.9,3319.0,3.012914]
[1768371751027,3.06491789,3319.9,3319.0,3.426914]
[1768371751931,3.61991789,3319.9,3319.0,6.55683722]
[1768371752228,6.63205822,3319.9,3319.0,6.55683722]
[1768371752528,3.61991789,3319.9,3319.1,3.12992322]
[1768371753329,3.61991789,3319.9,3318.6,3.01328365]
[1768371753330,3.06291789,3319.8,3318.8,3.01309656]
[1768371753534,3.06291789,3319.6,3318.7,3.12992322]
[1768371753936,3.06291789,3319.6,3318.9,3.12992322]
[1768371754123,0.414,3319.7,3318.9,3.12992322]
[1768371754440,0.555,3319.6,3318.9,3.12992322]
[1768371754938,3.61791789,3319.6,3318.8,3.01313727]
[1768371755139,3.61791789,3319.6,3318.9,3.01068551]
[1768371755926,0.555,3319.6,3318.9,6.02366097]
[1768371757138,1.11,3319.6,3318.9,6.02366097]
[1768371758734,1.11,3319.6,3319.0,3.01068551]
[1768371759551,1.665,3319.6,3319.0,3.01068551]
[1768371760155,1.665,3319.6,3319.1,3.01068551]
[1768371761756,1.665,3319.6,3319.2,3.01168551]
[1768371761958,2.22,3319.6,3319.2,3.01168551]
[1768371764154,2.22,3319.6,3319.3,3.01068551]
[1768371764155,1.08150656,3319.6,3319.3,3.01068551]
[1768371764337,1.63650656,3319.6,3319.3,3.01068551]
[1768371765267,0.49801312,3319.6,3319.3,3.00385079]
[1768371765763,0.49801312,3319.6,3319.1,6.43750617]
[1768371765974,0.49801312,3319.6,3319.2,3.01068551]
[1768371766179,0.49801312,3319.6,3319.2,6.02345513]
[1768371766551,0.49801312,3319.6,3319.2,3.01068551]
[1768371766752,1.05301312,3319.6,3319.2,3.01068551]
[1768371766978,0.55357274,3319.9,3319.2,3.01274985]
[1768371767211,0.55357274,3319.9,3319.3,3.3533605]
[1768371767649,0.55357274,3319.9,3319.5,3.01068551]
[1768371767854,1.10857273,3320.2,3319.8,3.01068551]
[1768371768093,0.002,3320.6,3319.9,3.01068551]
[1768371769060,0.416,3320.6,3319.9,3.01068551]
[1768371769283,1.665,3320.5,3319.9,3.01068551]
[1768371770090,1.665,3320.5,3319.9,6.49624405]
[1768371770382,1.665,3320.5,3320.0,3.01068551]
[1768371770690,1.665,3320.5,3319.3,3.01262781]
[1768371770691,3.00194641,3320.4,3319.3,3.01068551]
[1768371770875,3.00194641,3320.4,3319.5,36.02315221]
[1768371771059,3.00194641,3320.4,3319.5,16.02315221]
[1768371771569,3.55694641,3320.4,3319.6,3.01068551]
[1768371772455,3.55694641,3320.4,3319.6,6.02309414]
[1768371773615,3.55694641,3320.4,3319.6,3.01068551]
[1768371773813,0.002,3320.2,3319.6,3.01068551]
[1768371775420,3.00394641,3320.2,3319.6,3.01239266]
[1768371775718,0.002,3320.2,3319.6,6.023089]
[1768371775898,0.002,3320.2,3319.7,3.01068551]
[1768371776619,0.557,3320.2,3319.7,3.01068551]
[1768371777626,0.557,3320.2,3319.2,12.80262804]
[1768371777627,3.00194641,3320.1,3319.2,3.01371075]
[1768371777825,3.70042912,3320.1,3319.2,0.001]
[1768371778851,3.00194641,3320.0,3319.2,0.001]
[1768371779012,3.00194641,3319.8,3319.2,0.001]
[1768371780530,3.00194641,3319.7,3319.2,0.001]
[1768371780830,3.00194641,3319.5,3319.2,0.001]
[1768371781236,3.55694641,3319.5,3319.2,0.001]
[1768371781624,3.00194641,3319.4,3319.2,0.001]
[1768371783766,3.55694641,3319.4,3319.2,0.001]
[1768371786236,4.11194641,3319.4,3319.2,0.001]
[1768371787409,1.11,3319.4,3319.2,0.001]
[1768371788763,4.60715758,3319.4,3319.2,0.001]
[1768371788969,2.94215758,3319.3,3319.2,0.001]
[1768371789176,2.93873031,3319.3,3318.4,1.13318428]
[1768371789378,2.93873031,3319.3,3318.4,3.99557029]
[1768371790367,2.93873031,3319.3,3318.5,2.86238601]
[1768371791235,3.49373031,3319.3,3318.5,2.86238601]
[1768371791559,3.49373031,3319.3,3318.6,0.39955703]
[1768371793641,4.04873031,3319.3,3318.6,0.39955703]
[1768371794244,4.04873031,3319.3,3318.6,3.26194304]
[1768371796047,1.665,3319.3,3318.6,3.26194304]
[1768371797394,2.079,3319.3,3318.6,6.27524934]
[1768371797565,2.079,3319.3,3318.7,3.278953]
[1768371798493,2.634,3319.3,3318.7,3.278953]
[1768371800788,3.189,3319.3,3318.7,3.278953]
[1768371801189,2.775,3319.3,3318.7,3.278953]
[1768371802892,0.08814546,3319.5,3319.0,2.92103151]
[1768371803094,0.555,3319.3,3319.0,3.21313466]
[1768371803387,0.08814546,3319.5,3319.1,2.92103151]
[1768371805312,3.01234141,3319.7,3319.3,2.92103151]
[1768371805313,0.414,3319.7,3319.3,2.92103151]
[1768371805511,0.555,3319.5,3319.3,2.92103151]
[1768371805711,0.555,3319.5,3319.1,12.71131567]
[1768371807311,0.4961624,3319.5,3319.2,2.92103151]
[1768371807608,0.414,3320.0,3319.4,12.71131567]
[1768371807814,0.969,3320.0,3319.4,12.71131567]
[1768371808008,0.969,3320.0,3319.4,2.92103151]
[1768371808436,0.969,3320.0,3318.7,2.92103151]
[1768371808437,3.34749255,3319.9,3318.7,2.92103151]
[1768371808591,2.04979068,3320.0,3318.8,2.92103151]
[1768371808592,2.70301578,3319.7,3318.8,2.92103151]
[1768371809417,2.70301578,3319.6,3318.8,2.92103151]
[1768371810398,3.67201578,3319.6,3318.8,2.92103151]
[1768371811435,2.70301578,3319.4,3318.7,10.414]
[1768371811624,3.37146755,3319.4,3318.4,4.05421579]
[1768371811827,2.70301578,3319.4,3318.4,4.05421579]
[1768371812429,2.70301578,3319.4,3318.5,2.92103151]
[1768371812810,2.70301578,3319.3,3318.5,2.92103151]
[1768371813738,6.58028598,3319.4,3318.4,1.13318428]
[1768371813739,2.70301578,3319.1,3318.4,1.13318428]
[1768371813915,2.70301578,3318.9,3318.4,0.71918428]
[1768371814124,2.70301578,3319.1,3318.4,0.71918428]
[1768371814908,5.71595038,3319.1,3318.4,0.71918428]
[1768371815308,6.27095038,3319.1,3318.4,0.71918428]
[1768371816835,5.85028676,3319.0,3318.4,0.71918428]
[1768371817141,6.53221544,3319.0,3318.4,0.71918428]
[1768371817541,2.83728845,3318.9,3318.4,0.71918428]
[1768371817739,3.25128845,3318.8,3318.4,0.71918428]
[1768371818419,3.25128845,3318.8,3318.0,3.19309711]
[1768371819019,3.01322807,3318.7,3318.0,3.19309711]
[1768371819648,2.83728845,3318.6,3317.6,2.77909711]
[1768371819852,2.83728845,3318.6,3317.6,3.19309711]
[1768371820150,3.39228845,3318.6,3317.6,3.19309711]
[1768371820920,3.39228845,3318.6,3318.3,0.001]
[1768371821120,3.87193965,3318.5,3318.3,0.001]
[1768371821649,6.8853508,3318.5,3318.3,0.001]
[1768371822016,3.87193965,3318.5,3318.3,0.001]
[1768371822218,6.88540944,3318.5,3318.3,0.001]
[1768371822426,2.83728845,3318.4,3318.3,0.001]
[1768371823340,3.63682939,3318.4,3318.3,0.001]
[1768371823580,6.65032987,3318.4,3318.3,0.001]
[1768371823855,3.63682939,3318.4,3318.3,0.001]
[1768371824025,6.65032987,3318.4,3318.3,0.001]
[1768371824224,3.63682939,3318.4,3318.3,0.001]
[1768371824425,6.65032987,3318.4,3318.3,0.001]
[1768371825047,7.20532987,3318.4,3318.3,0.001]
[1768371825349,7.20532987,3318.4,3317.5,2.77567975]
[1768371825350,2.83728845,3318.3,3317.5,2.77567975]
[1768371825550,2.83728845,3318.3,3317.1,2.77909711]
[1768371825751,2.83728845,3318.3,3316.6,12.56938127]
[1768371825752,0.64224036,3318.2,3316.6,12.56938127]
[1768371825967,2.83728845,3318.1,3316.9,9.79028416]
[1768371826150,2.83728845,3317.9,3316.8,9.79028416]
[1768371826967,2.83728845,3317.9,3316.9,2.77909711]
[1768371827166,2.83728845,3317.7,3316.9,2.77909711]
[1768371827325,5.85147099,3317.7,3316.9,2.77909711]
[1768371827528,6.40647099,3317.7,3316.9,2.77909711]
[1768371827941,0.555,3317.7,3316.9,2.77909711]
[1768371828265,0.555,3317.7,3317.0,2.77909711]
[1768371828862,3.42768211,3318.2,3317.5,2.77226239]
[1768371829361,0.555,3318.4,3317.5,2.77226239]
[1768371829683,0.414,3318.3,3317.5,2.80240557]
[1768371829849,0.414,3318.3,3317.5,2.77226239]
[1768371830178,0.414,3318.3,3317.6,2.77909711]
[1768371830361,4.12353984,3318.4,3317.6,2.77909711]
[1768371830548,4.53753984,3318.4,3317.6,2.77909711]
[1768371830748,4.53753984,3318.4,3317.8,2.77909711]
[1768371830749,1.11,3318.4,3317.8,2.77909711]
[1768371831483,1.11,3318.4,3317.9,2.77909711]
[1768371832384,1.665,3318.4,3317.9,2.77909711]
[1768371832886,2.83728845,3318.8,3317.9,2.77909711]
[1768371832887,3.42711375,3318.9,3318.1,12.56938127]
[1768371833254,6.2644022,3318.9,3318.1,12.56938127]
[1768371833799,6.2644022,3318.9,3318.2,2.77909711]
[1768371833800,3.42711375,3318.9,3318.2,2.77909711]
[1768371834710,0.414,3318.9,3318.2,2.77909711]
[1768371834913,3.98205204,3318.9,3318.2,2.77909711]
[1768371835069,0.555,3318.9,3318.2,2.77909711]
[1768371835673,0.54814547,3319.0,3318.4,9.79028416]
[1768371836002,0.54814547,3319.0,3318.4,12.56938127]
[1768371836206,0.555,3319.1,3318.5,2.77909711]
[1768371836401,3.39228845,3319.4,3318.8,2.77909711]
[1768371836402,0.969,3319.4,3318.8,2.77909711]
[1768371836871,0.969,3319.4,3318.7,9.79028416]
[1768371837400,1.11,3319.4,3318.7,9.79028416]
[1768371837618,1.11,3319.4,3318.8,2.77909711]
[1768371837920,1.11,3319.4,3318.7,2.77909711]
[1768371839413,3.94728845,3319.4,3318.7,2.77909711]
[1768371839608,1.11,3319.4,3318.7,2.77909711]
[1768371839795,1.665,3319.4,3318.7,2.77909711]
[1768371840610,1.665,3319.4,3318.7,5.79223974]
[1768371840775,1.665,3319.4,3319.0,2.77909711]
[1768371841113,0.39200562,3319.5,3319.2,2.77909711]
[1768371841513,0.39200562,3319.5,3318.9,9.79028416]
[1768371841696,0.39200562,3319.5,3319.0,2.77909711]
[1768371841894,0.555,3319.6,3319.1,2.77226239]
[1768371841895,0.54814546,3319.6,3319.1,2.77226239]
[1768371842319,1.10314546,3319.6,3319.1,2.77226239]
[1768371844703,0.30520223,3319.6,3319.2,2.77909711]
[1768371845710,0.002,3319.5,3319.2,2.77909711]
[1768371846189,3.39228845,3320.0,3319.2,2.77567975]
[1768371846190,6.40292074,3320.0,3319.2,2.77567975]
[1768371846390,0.414,3319.9,3319.2,2.77567975]
[1768371846600,6.40292074,3320.0,3319.2,2.77567975]
[1768371846822,0.414,3319.9,3319.2,2.77567975]
[1768371847321,2.65193332,3319.8,3319.0,2.66668654]
[1768371848125,2.65193332,3319.8,3318.0,2.66668654]
[1768371848126,2.65193332,3319.4,3318.0,2.66668654]
[1768371848296,2.65193332,3319.2,3318.3,0.414]
[1768371849042,2.65193332,3319.2,3317.9,0.001]
[1768371849249,2.65193332,3319.2,3318.0,0.414]
[1768371849250,2.65193332,3319.1,3318.0,0.414]
[1768371849456,2.65193332,3318.9,3318.0,3.08068654]
[1768371850550,5.66507059,3318.8,3318.0,3.08068654]
[1768371850716,2.65193332,3318.7,3318.0,0.414]
[1768371851054,5.66501718,3318.9,3318.0,3.08068654]
[1768371851865,2.65193332,3318.9,3318.0,6.09454464]
[1768371852014,6.2199842,3318.9,3318.0,3.08068654]
[1768371852214,3.56805088,3318.9,3318.0,3.08068654]
[1768371854228,6.2199842,3318.9,3318.0,3.08068654]
[1768371854429,6.7749842,3318.9,3318.0,3.08068654]
[1768371854731,6.7749842,3318.9,3318.1,2.66668654]
[1768371854937,6.7749842,3318.9,3318.1,3.08068654]
[1768371855646,9.78803508,3318.9,3318.1,3.08068654]
[1768371855854,2.65193332,3318.8,3318.1,0.414]
[1768371856847,5.66516139,3318.7,3317.9,2.66768654]
[1768371857040,5.66516139,3318.7,3318.0,0.68076865]
[1768371857245,5.66516139,3318.7,3318.0,0.414]
[1768371857424,5.66516139,3318.7,3318.4,0.001]
[1768371858430,2.57015833,3318.6,3318.4,0.001]
[1768371858629,5.58348889,3318.6,3318.4,0.001]
[1768371859017,2.56673106,3318.5,3317.6,2.68785756]
[1768371859332,2.57015833,3318.4,3317.6,3.10185756]
[1768371861455,3.5684874,3318.5,3317.6,3.10185756]
[1768371861816,0.555,3318.5,3317.6,6.11608129]
[1768371862153,4.12341594,3318.5,3317.7,2.69127492]
[1768371863053,1.11,3318.5,3317.7,2.69127492]
[1768371863353,1.11,3318.5,3317.8,2.69127492]
[1768371863957,2.57015833,3318.4,3317.6,3.10527492]
[1768371864344,3.12515833,3318.4,3317.6,3.10527492]
[1768371864673,0.555,3318.4,3317.6,3.10527492]
[1768371865481,6.13868175,3318.4,3317.6,3.10527492]
[1768371866273,3.12515833,3318.4,3317.6,3.10527492]
[1768371866479,3.12515833,3318.4,3317.6,6.11948902]
[1768371866770,3.68015833,3318.4,3317.6,3.10527492]
[1768371867087,6.69366842,3318.4,3317.6,3.10527492]
[1768371868853,3.68015833,3318.4,3317.6,3.10527492]
[1768371869059,4.23515833,3318.4,3317.6,3.10527492]
[1768371869487,7.24867222,3318.4,3317.6,3.10527492]
[1768371870580,0.002,3318.1,3317.6,3.10527492]
[1768371870760,2.57215833,3318.1,3317.7,0.31052749]
[1768371871092,2.57215833,3318.1,3317.3,0.414]
[1768371871242,2.57215833,3318.1,3317.3,3.10527492]
[1768371871470,3.12715833,3318.1,3317.3,3.10527492]
[1768371872472,3.12715833,3318.1,3317.4,2.69127492]
[1768371872715,0.557,3318.1,3317.4,2.69127492]
[1768371873906,1.112,3318.1,3317.4,2.69127492]
[1768371874903,1.112,3318.1,3317.4,5.70567953]
[1768371876209,1.112,3318.1,3317.4,5.69884481]
[1768371876210,0.555,3318.1,3317.4,5.69884481]
[1768371877208,0.555,3318.1,3317.5,2.62080338]
[1768371877506,4.2600238,3318.4,3317.6,2.5906602]
[1768371877981,2.5930238,3318.3,3317.4,5.60506481]
[1768371878405,2.5930238,3318.3,3317.5,2.5906602]
[1768371878606,3.1480238,3318.3,3317.5,2.5906602]
[1768371879717,3.23632038,3318.2,3316.9,6.82659604]
[1768371880015,6.58221478,3318.3,3317.0,5.60542178]
[1768371880016,2.5930238,3318.0,3317.0,5.60542178]
[1768371880204,2.5930238,3318.0,3317.1,5.60532549]
[1768371880511,2.5930238,3318.0,3317.2,2.5906602]
[1768371880731,1.39585352,3318.1,3317.3,5.60510712]
[1768371880732,0.98185352,3318.1,3317.3,5.60510712]
[1768371880889,3.0070238,3318.2,3317.3,2.5906602]
[1768371881089,0.555,3318.1,3317.3,2.5906602]
[1768371881285,3.1480238,3318.1,3317.3,2.5906602]
[1768371882317,0.555,3318.1,3317.3,2.5906602]
[1768371883142,0.555,3318.1,3317.7,0.001]
[1768371883433,1.22667884,3318.1,3317.7,0.001]
[1768371883639,1.78167884,3318.1,3317.7,0.001]
[1768371884006,4.79545962,3318.1,3317.7,0.001]
[1768371884303,1.78167884,3318.1,3317.7,0.001]
[1768371885836,4.79549166,3318.1,3317.7,0.001]
[1768371886037,0.73885155,3318.0,3317.7,0.001]
[1768371888028,2.33667884,3318.1,3317.7,0.001]
[1768371888223,1.665,3318.1,3317.7,0.001]
[1768371888423,2.22,3318.1,3317.7,0.001]
[1768371888928,2.22,3318.1,3317.7,2.5916602]
[1768371890061,0.952479,3318.4,3317.9,2.5906602]
[1768371890230,0.952479,3318.4,3317.7,3.0046602]
[1768371890545,3.9659941,3318.4,3317.7,3.0046602]
[1768371891041,1.507479,3318.4,3317.7,3.0046602]
[1768371893014,1.507479,3318.4,3317.8,2.5906602]
[1768371893550,2.062479,3318.4,3317.8,2.5906602]
[1768371894243,0.77464807,3318.4,3317.9,2.5906602]
[1768371894420,0.77464807,3318.4,3318.0,2.84972622]
[1768371894940,0.77464807,3318.4,3318.0,2.85072622]
[1768371895347,1.11,3318.5,3318.0,2.84987188]
[1768371895746,0.55157274,3318.8,3318.3,2.5906602]
[1768371895946,1.11,3318.9,3318.5,2.5906602]
[1768371896246,1.11,3318.9,3318.2,2.5906602]
[1768371896451,1.11,3318.9,3318.3,2.89112622]
[1768371896943,1.11,3318.9,3318.3,2.88769895]
[1768371897363,1.11,3318.9,3318.3,5.90123214]
[1768371897528,1.11,3318.9,3318.4,2.5906602]
[1768371897731,1.1074269,3318.9,3318.4,2.59027307]
[1768371898054,1.10657273,3318.9,3318.4,2.59027307]
[1768371898353,1.66157273,3318.9,3318.4,2.59027307]
[1768371898568,0.969,3319.1,3318.5,2.5906602]
[1768371900525,1.524,3319.1,3318.5,2.5906602]
[1768371901759,1.11199999,3319.7,3318.8,2.5906602]
[1768371902051,4.12435117,3319.7,3318.8,2.5906602]
[1768371902257,6.71737497,3319.7,3318.8,2.5906602]
[1768371902761,2.5930238,3319.6,3318.8,2.5906602]
[1768371903081,4.12435117,3319.7,3318.9,2.5906602]
[1768371903082,1.66699999,3319.7,3318.9,2.5906602]
[1768371903227,0.002,3319.8,3319.2,2.5906602]
[1768371903567,0.002,3319.8,3319.4,2.5906602]
[1768371903726,1e-08,3319.9,3319.5,2.5906602]
[1768371905459,1e-08,3319.9,3319.7,2.59989438]
[1768371905658,1e-08,3320.2,3319.8,0.414]
[1768371907271,0.002,3319.9,3319.8,0.414]
[1768371907854,4.12169989,3320.4,3319.8,0.414]
[1768371908055,1.11,3320.4,3319.8,0.414]
[1768371908258,1.11,3320.4,3319.9,2.59989438]
[1768371908479,1.68906169,3320.4,3319.9,2.59989438]
[1768371909853,4.70077645,3320.4,3319.8,0.414]
[1768371910051,4.70077645,3320.4,3319.8,3.01389438]
[1768371910253,5.25577645,3320.4,3319.8,3.01389438]
[1768371910471,2.24406169,3320.4,3319.8,3.01389438]
[1768371910788,5.25575979,3320.4,3319.8,3.01389438]
[1768371913485,5.81075979,3320.4,3319.8,3.01389438]
[1768371913981,8.82245789,3320.4,3319.8,3.01389438]
[1768371914284,1.04894579,3320.3,3319.8,0.414]
[1768371915186,1.04894579,3320.3,3319.6,2.59989438]
[1768371915381,1.04894579,3320.3,3319.9,0.414]
[1768371916166,4.61573526,3320.3,3319.9,3.01389438]
[1768371916687,4.61573526,3320.3,3319.9,0.414]
[1768371917990,1.60394579,3320.3,3319.9,0.414]
[1768371918163,3.56679728,3320.3,3319.9,0.414]
[1768371918668,4.12179728,3320.3,3319.9,0.32763569]
[1768371921051,4.67679728,3320.3,3319.9,0.32763569]
[1768371921589,4.67679728,3320.3,3319.9,2.82874389]
[1768371922081,1.665,3320.3,3319.9,2.82874389]
[1768371922983,2.44219082,3320.2,3319.8,0.001]
[1768371923185,2.44219082,3320.1,3319.4,0.414]
[1768371923408,2.44219082,3320.1,3318.7,2.5011082]
[1768371923698,2.44219082,3319.9,3318.7,0.414]
[1768371923883,2.44219082,3319.6,3318.2,2.5011082]
[1768371924191,2.44219082,3319.4,3318.2,2.9151082]
[1768371925974,6.02536678,3319.3,3318.2,2.9151082]
[1768371926174,8.4675576,3319.3,3318.3,2.79261902]
[1768371927060,2.44219082,3319.2,3318.3,2.79261902]
[1768371927796,2.44219082,3319.2,3318.3,3.20661902]
[1768371928293,5.45505575,3319.1,3318.3,3.20661902]
[1768371928587,3.01286493,3319.1,3318.4,2.5011082]
[1768371928776,6.58072986,3319.1,3318.4,2.5011082]
[1768371929353,6.58072986,3319.1,3318.2,2.5011082]
[1768371929354,7.89702193,3319.1,3318.2,2.5011082]
[1768371930592,7.89702193,3319.1,3318.4,2.5011082]
[1768371930759,7.89702193,3319.1,3318.6,0.001]
[1768371931288,5.439157,3319.1,3318.6,0.001]
[1768371931881,8.45202193,3319.1,3318.6,0.001]
[1768371933184,5.439157,3319.1,3318.6,0.001]
[1768371933598,5.994157,3319.1,3318.6,0.001]
[1768371933894,9.00702193,3319.1,3318.6,0.001]
[1768371934589,11.44921275,3319.1,3318.6,0.001]
[1768371934773,1.14492128,3319.0,3318.6,0.001]
[1768371935165,2.28482152,3318.8,3318.6,0.001]
[1768371935600,2.28482152,3318.8,3318.0,0.001]
[1768371935792,2.28482152,3318.8,3318.1,0.414]
[1768371936100,0.555,3318.8,3318.1,2.49465208]
[1768371936399,0.555,3318.8,3318.2,2.74421729]
[1768371936777,0.555,3318.8,3318.0,0.001]
[1768371936778,2.28482152,3318.7,3318.0,0.001]
[1768371937291,2.28482152,3318.5,3318.0,0.001]
[1768371938410,2.83982152,3318.5,3318.0,0.001]
[1768371939909,3.01350048,3318.4,3318.0,0.001]
[1768371940814,3.56850048,3318.4,3318.0,0.001]
[1768371941674,8.86682248,3318.4,3318.0,0.001]
[1768371941877,5.853322,3318.4,3318.0,0.001]
[1768371942512,2.28482152,3318.3,3318.0,0.001]
[1768371943223,2.83982152,3318.3,3318.0,0.001]
[1768371944028,2.28482152,3318.2,3318.0,0.001]
[1768371944888,0.555,3318.3,3318.0,2.49565208]
[1768371945093,0.555,3318.3,3318.1,0.24956521]
[1768371945293,0.555,3318.3,3318.0,0.001]
[1768371945484,1.11,3318.3,3318.0,0.001]
[1768371945889,1.11,3318.3,3318.0,2.49565208]
[1768371947736,1.11,3318.3,3318.0,0.001]
[1768371948215,1.665,3318.3,3318.0,0.001]
[1768371950643,2.22,3318.3,3318.0,0.001]
[1768371952942,2.775,3318.3,3318.0,0.001]
[1768371953450,3.69333778,3318.3,3317.5,2.90865208]
[1768371954153,6.70693474,3318.3,3317.5,2.90865208]
[1768371954357,3.69333778,3318.3,3317.5,2.90865208]
[1768371954528,2.775,3318.3,3317.5,2.90865208]
[1768371955060,5.78860744,3318.3,3317.5,2.90865208]
[1768371955427,6.34360744,3318.3,3317.5,2.90865208]
[1768371955932,3.33,3318.3,3317.8,0.001]
[1768371956451,5.85336662,3318.4,3317.8,0.001]
[1768371956452,0.555,3318.5,3318.1,2.49465208]
[1768371957265,0.002,3318.6,3318.3,2.49465208]
[1768371957757,0.557,3318.6,3318.3,2.49465208]
[1768371958763,0.557,3318.6,3318.0,0.414]
[1768371958764,0.557,3318.6,3318.1,2.49465208]
[1768371960360,1.112,3318.6,3318.1,2.49465208]
[1768371960531,1.112,3318.6,3318.3,2.49465208]
[1768371961068,1.112,3318.6,3317.8,2.74521729]
[1768371961963,4.12533667,3318.6,3317.8,2.74521729]
[1768371962255,6.41015819,3318.6,3317.8,2.74521729]
[1768371962466,2.28482152,3318.5,3317.8,0.001]
[1768371962842,2.83982152,3318.5,3317.8,0.001]
[1768371964665,2.83982152,3318.5,3317.8,2.49565208]
[1768371965670,6.40823864,3318.5,3317.8,2.49565208]
[1768371966560,2.77197055,3318.4,3317.8,0.001]
[1768371966863,2.35797055,3318.2,3317.8,0.001]
[1768371967165,2.35797055,3318.2,3318.1,0.001]
[1768371967961,2.91297055,3318.2,3318.1,0.001]
[1768371969844,5.92665266,3318.2,3317.8,0.001]
[1768371970269,2.91297055,3318.2,3317.8,0.001]
[1768371970569,3.46797055,3318.2,3317.8,0.001]
[1768371970738,1.11,3318.2,3317.8,0.001]
[1768371972880,1.665,3318.2,3317.8,0.001]
[1768371973987,4.67868375,3318.2,3317.8,0.001]
[1768371974587,7.0366543,3318.2,3317.8,0.001]
[1768371974781,2.35797055,3318.1,3317.1,2.33668302]
[1768371975088,2.35797055,3318.1,3317.2,2.33668302]
[1768371975381,2.91297055,3318.1,3317.2,2.33668302]
[1768371976780,5.92674998,3318.1,3317.2,2.33668302]
[1768371976970,5.92674998,3318.1,3317.3,2.57035132]
[1768371977748,6.48174998,3318.1,3317.3,2.57035132]
[1768371978152,3.46797055,3318.1,3317.3,2.57035132]
[1768371978551,1.11,3318.1,3317.3,2.57035132]
[1768371979007,1.11,3318.1,3317.5,0.001]
[1768371980150,2.079,3318.1,3317.5,0.001]
[1768371980561,2.079,3318.1,3317.5,2.1778711]
[1768371981474,2.079,3318.1,3317.5,2.41902504]
[1768371982596,1.665,3318.1,3317.5,2.41902504]
[1768371982798,2.22,3318.1,3317.5,2.41902504]
[1768371983575,1e-08,3318.2,3318.1,2.1768711]
[1768371983768,1e-08,3318.2,3318.1,2.39455821]
[1768371984469,1e-08,3318.2,3318.1,0.21768711]
[1768371984895,1e-08,3318.2,3318.1,2.39455821]
[1768371985196,1.11,3318.5,3318.2,2.1768711]
[1768371986863,1.644069,3319.1,3318.3,30.0]
[1768371987064,1.644069,3319.1,3318.6,2.1768711]
[1768371987290,1.644069,3319.1,3318.4,1.02816613]
[1768371987291,2.23159102,3319.0,3318.4,1.02816613]
[1768371987497,2.23159102,3319.0,3318.3,0.414]
[1768371987680,2.23159102,3319.0,3318.3,5.60445742]
[1768371987868,2.199069,3319.1,3318.3,2.5908711]
[1768371988264,2.199069,3319.1,3318.3,5.60444653]
[1768371988998,2.199069,3319.1,3318.3,2.5908711]
[1768371989193,2.199069,3319.1,3318.4,2.43595821]
[1768371990280,2.754069,3319.1,3318.4,2.43595821]
[1768371990465,4.98566002,3319.1,3318.4,0.25908711]
[1768371990665,4.98566002,3319.1,3318.3,0.414]
[1768371990970,4.98566002,3319.1,3318.3,2.5908711]
[1768371991164,0.002,3318.7,3318.3,2.5908711]
[1768371991371,0.002,3318.7,3318.4,2.1768711]